[Event "Early-Titled-Tuesday-Blitz-January-23-2024"]
[Site "Chess.com"]
[Date "2024.01.23"]
[Round "9"]
[White "dosto07"]
[Black "Slovineanu"]
[Result "1-0"]
[WhiteElo "2533"]
[BlackElo "2410"]
[TimeControl "180+1"]
[EndTime "9:45:57 PST"]
[Termination "dosto07 won on time"]

1. e4 {[%clk 0:02:48.7]} 1... e5 {[%clk 0:02:57.9]} 2. Nf3 {[%clk 0:02:45.6]}
2... Nc6 {[%clk 0:02:58]} 3. Bb5 {[%clk 0:02:45.5]} 3... a6 {[%clk 0:02:57.3]}
4. Ba4 {[%clk 0:02:45.7]} 4... Bc5 {[%clk 0:02:56.8]} 5. d3 {[%clk 0:02:38]}
5... Nge7 {[%clk 0:02:50.8]} 6. O-O {[%clk 0:02:29.6]} 6... O-O {[%clk
0:02:50.1]} 7. Be3 {[%clk 0:02:29.4]} 7... Bxe3 {[%clk 0:02:25.7]} 8. fxe3
{[%clk 0:02:29]} 8... b5 {[%clk 0:02:24.7]} 9. Bb3 {[%clk 0:02:28.4]} 9... d5
{[%clk 0:02:25.3]} 10. exd5 {[%clk 0:02:21.3]} 10... Nxd5 {[%clk 0:02:24.7]} 11.
Qe1 {[%clk 0:02:19.7]} 11... Be6 {[%clk 0:02:16.1]} 12. Nbd2 {[%clk 0:02:14]}
12... f6 {[%clk 0:01:59.5]} 13. d4 {[%clk 0:01:59.1]} 13... exd4 {[%clk
0:01:49.7]} 14. Nxd4 {[%clk 0:01:52.1]} 14... Nxd4 {[%clk 0:01:47.9]} 15. exd4
{[%clk 0:01:52.1]} 15... Bf7 {[%clk 0:01:42]} 16. Qg3 {[%clk 0:01:44.2]} 16...
Re8 {[%clk 0:01:19.2]} 17. Rae1 {[%clk 0:01:34.3]} 17... Qd6 {[%clk 0:01:08.8]}
18. Qf3 {[%clk 0:01:18.7]} 18... c6 {[%clk 0:00:35.4]} 19. Ne4 {[%clk
0:01:17.8]} 19... Qf8 {[%clk 0:00:30.4]} 20. Qg3 {[%clk 0:01:10.7]} 20... Kh8
{[%clk 0:00:25.2]} 21. Nd6 {[%clk 0:01:04.2]} 21... Rxe1 {[%clk 0:00:24.8]} 22.
Rxe1 {[%clk 0:01:04.5]} 22... Rd8 {[%clk 0:00:24.3]} 23. Nb7 {[%clk 0:00:41.2]}
23... Re8 {[%clk 0:00:22.1]} 24. Nc5 {[%clk 0:00:41.2]} 24... a5 {[%clk
0:00:19.8]} 25. c3 {[%clk 0:00:39.9]} 25... a4 {[%clk 0:00:18.3]} 26. Bc2 {[%clk
0:00:39.7]} 26... g6 {[%clk 0:00:18]} 27. Qf2 {[%clk 0:00:30.7]} 27... Kg7
{[%clk 0:00:17.1]} 28. Rf1 {[%clk 0:00:29.9]} 28... Qd6 {[%clk 0:00:14.8]} 29.
Ne4 {[%clk 0:00:26.5]} 29... Qe6 {[%clk 0:00:13]} 30. Bd3 {[%clk 0:00:20]} 30...
f5 {[%clk 0:00:12.7]} 31. Ng5 {[%clk 0:00:20]} 31... Qe3 {[%clk 0:00:13.3]} 32.
Nxf7 {[%clk 0:00:17.5]} 32... Qxf2+ {[%clk 0:00:11.8]} 33. Kxf2 {[%clk
0:00:17.3]} 33... Kxf7 {[%clk 0:00:12]} 34. Rc1 {[%clk 0:00:16.4]} 34... Nf4
{[%clk 0:00:10.5]} 35. Bf1 {[%clk 0:00:16.2]} 35... g5 {[%clk 0:00:09]} 36. g3
{[%clk 0:00:16.4]} 36... Ne6 {[%clk 0:00:08.6]} 37. Bg2 {[%clk 0:00:16.6]} 37...
Rc8 {[%clk 0:00:07.3]} 38. d5 {[%clk 0:00:16.2]} 38... cxd5 {[%clk 0:00:07.6]}
39. Bxd5 {[%clk 0:00:16.6]} 39... Kf6 {[%clk 0:00:07.9]} 40. Re1 {[%clk
0:00:15.8]} 40... Nc5 {[%clk 0:00:07.8]} 41. Rd1 {[%clk 0:00:14.8]} 41... Rd8
{[%clk 0:00:07.6]} 42. Ke3 {[%clk 0:00:14.7]} 42... Ne4 {[%clk 0:00:07.2]} 43.
Rd4 {[%clk 0:00:13.6]} 43... Ke5 {[%clk 0:00:07.1]} 44. Bxe4 {[%clk 0:00:12.8]}
44... Re8 {[%clk 0:00:02.7]} 45. Rd5+ {[%clk 0:00:10.3]} 1-0

[Event "Early-Titled-Tuesday-Blitz-January-23-2024"]
[Site "Chess.com"]
[Date "2024.01.23"]
[Round "9"]
[White "Grischuk"]
[Black "sokidze"]
[Result "1-0"]
[WhiteElo "3074"]
[BlackElo "2850"]
[TimeControl "180+1"]
[EndTime "9:45:59 PST"]
[Termination "Grischuk won on time"]

1. d4 {[%clk 0:03:00.9]} 1... d5 {[%clk 0:03:00]} 2. Nf3 {[%clk 0:03:00.1]} 2...
Nf6 {[%clk 0:03:00.2]} 3. Bg5 {[%clk 0:03:00.3]} 3... Ne4 {[%clk 0:02:56.1]} 4.
Bh4 {[%clk 0:03:00.1]} 4... Qd6 {[%clk 0:02:52.6]} 5. c4 {[%clk 0:02:59.8]} 5...
dxc4 {[%clk 0:02:37.1]} 6. e3 {[%clk 0:02:55.6]} 6... c6 {[%clk 0:02:07.8]} 7.
Bxc4 {[%clk 0:02:43.6]} 7... g6 {[%clk 0:01:41.8]} 8. Ne5 {[%clk 0:02:21.7]}
8... Be6 {[%clk 0:01:24.7]} 9. Qb3 {[%clk 0:02:06.6]} 9... Bxc4 {[%clk
0:01:09.2]} 10. Nxc4 {[%clk 0:01:56]} 10... Qc7 {[%clk 0:00:51.5]} 11. Nc3
{[%clk 0:01:43.5]} 11... Nxc3 {[%clk 0:00:49.2]} 12. Bg3 {[%clk 0:01:42.6]}
12... Qc8 {[%clk 0:00:44.3]} 13. bxc3 {[%clk 0:01:41.9]} 13... Bg7 {[%clk
0:00:43.2]} 14. a4 {[%clk 0:01:11.1]} 14... b6 {[%clk 0:00:40.6]} 15. O-O {[%clk
0:01:10]} 15... O-O {[%clk 0:00:40.2]} 16. e4 {[%clk 0:01:07.2]} 16... Nd7
{[%clk 0:00:32.3]} 17. e5 {[%clk 0:01:04.1]} 17... e6 {[%clk 0:00:24.2]} 18. Bh4
{[%clk 0:00:58.1]} 18... Qc7 {[%clk 0:00:16.2]} 19. Be7 {[%clk 0:00:41.8]} 19...
Nc5 {[%clk 0:00:08.7]} 20. dxc5 {[%clk 0:00:42.7]} 20... Qxe7 {[%clk 0:00:08.8]}
21. cxb6 {[%clk 0:00:43.3]} 21... axb6 {[%clk 0:00:09.5]} 22. Qxb6 {[%clk
0:00:41.3]} 22... Rfb8 {[%clk 0:00:09.7]} 23. Qxc6 {[%clk 0:00:37.1]} 23... Rc8
{[%clk 0:00:09]} 24. Qe4 {[%clk 0:00:36.3]} 24... Qc5 {[%clk 0:00:07.6]} 25. Nd6
{[%clk 0:00:34.8]} 25... Rcb8 {[%clk 0:00:04.2]} 26. Rfe1 {[%clk 0:00:27.1]}
26... Qxc3 {[%clk 0:00:04.1]} 27. g3 {[%clk 0:00:24.4]} 27... Qb4 {[%clk
0:00:02.7]} 28. Qf3 {[%clk 0:00:15.4]} 28... Rf8 {[%clk 0:00:03]} 29. Re4 {[%clk
0:00:13.3]} 29... Qb2 {[%clk 0:00:02.4]} 30. Rae1 {[%clk 0:00:12.3]} 30... Qa2
{[%clk 0:00:02.3]} 31. Rf4 {[%clk 0:00:10.6]} 31... g5 {[%clk 0:00:01.3]} 32.
Rxf7 {[%clk 0:00:09.2]} 32... Kh8 {[%clk 0:00:02]} 33. Re4 {[%clk 0:00:04.3]}
33... h6 {[%clk 0:00:02.2]} 34. Kg2 {[%clk 0:00:04]} 34... Kg8 {[%clk
0:00:02.3]} 35. h4 {[%clk 0:00:03.8]} 35... Qd5 {[%clk 0:00:02.2]} 36. hxg5
{[%clk 0:00:03.6]} 36... hxg5 {[%clk 0:00:03.1]} 37. Kg1 {[%clk 0:00:01.5]}
37... Rab8 {[%clk 0:00:01.7]} 38. Qh5 {[%clk 0:00:01.2]} 1-0

[Event "Early-Titled-Tuesday-Blitz-January-23-2024"]
[Site "Chess.com"]
[Date "2024.01.23"]
[Round "9"]
[White "Manukyan_Artak"]
[Black "only_strong_moves"]
[Result "1-0"]
[WhiteElo "2514"]
[BlackElo "2597"]
[TimeControl "180+1"]
[EndTime "9:45:59 PST"]
[Termination "Manukyan_Artak won by checkmate"]

1. e4 {[%clk 0:03:00.9]} 1... e5 {[%clk 0:02:57.9]} 2. Nf3 {[%clk 0:03:00.4]}
2... Nc6 {[%clk 0:02:54.6]} 3. d4 {[%clk 0:03:00.8]} 3... exd4 {[%clk
0:02:54.6]} 4. Nxd4 {[%clk 0:03:01.7]} 4... Nf6 {[%clk 0:02:55.2]} 5. Nxc6
{[%clk 0:03:01.7]} 5... bxc6 {[%clk 0:02:55]} 6. e5 {[%clk 0:03:02.3]} 6... Qe7
{[%clk 0:02:55.7]} 7. Qe2 {[%clk 0:03:01.8]} 7... Nd5 {[%clk 0:02:56.4]} 8. c4
{[%clk 0:03:02.5]} 8... Ba6 {[%clk 0:02:55.4]} 9. b3 {[%clk 0:03:02.7]} 9... f6
{[%clk 0:02:53]} 10. exf6 {[%clk 0:03:00.4]} 10... Nxf6 {[%clk 0:02:52.2]} 11.
Bb2 {[%clk 0:02:59.1]} 11... Qxe2+ {[%clk 0:02:46.7]} 12. Bxe2 {[%clk
0:02:57.3]} 12... Bb4+ {[%clk 0:02:47.3]} 13. Nc3 {[%clk 0:02:54.3]} 13... Ne4
{[%clk 0:02:39.5]} 14. Rc1 {[%clk 0:02:47]} 14... O-O {[%clk 0:02:13.9]} 15. O-O
{[%clk 0:02:34.6]} 15... Rae8 {[%clk 0:01:36.6]} 16. Nxe4 {[%clk 0:02:16.8]}
16... Rxe4 {[%clk 0:01:37.5]} 17. Bf3 {[%clk 0:02:16.8]} 17... Re7 {[%clk
0:01:36.8]} 18. a3 {[%clk 0:02:10.9]} 18... Bd6 {[%clk 0:01:30.9]} 19. Rfe1
{[%clk 0:02:06.5]} 19... Rfe8 {[%clk 0:01:27.6]} 20. Rxe7 {[%clk 0:01:51.2]}
20... Rxe7 {[%clk 0:01:28.5]} 21. g3 {[%clk 0:01:51.6]} 21... Be5 {[%clk
0:01:16.4]} 22. Re1 {[%clk 0:01:46.2]} 22... Bf6 {[%clk 0:01:14.6]} 23. Rxe7
{[%clk 0:01:43.3]} 23... Bxe7 {[%clk 0:01:15.5]} 24. a4 {[%clk 0:01:43.3]} 24...
Kf7 {[%clk 0:01:08.2]} 25. Be4 {[%clk 0:01:35.1]} 25... g6 {[%clk 0:01:07.9]}
26. f4 {[%clk 0:01:31.1]} 26... Ke6 {[%clk 0:01:06.8]} 27. Kf2 {[%clk
0:01:27.9]} 27... Bc5+ {[%clk 0:01:04.6]} 28. Kf3 {[%clk 0:01:24.3]} 28... d5
{[%clk 0:00:54]} 29. Bd3 {[%clk 0:01:23.2]} 29... Bc8 {[%clk 0:00:51.8]} 30. g4
{[%clk 0:01:17.4]} 30... Kf7 {[%clk 0:00:47]} 31. Be5 {[%clk 0:01:14.1]} 31...
Bd6 {[%clk 0:00:45.8]} 32. Bxd6 {[%clk 0:01:10]} 32... cxd6 {[%clk 0:00:41.6]}
33. cxd5 {[%clk 0:01:10.9]} 33... cxd5 {[%clk 0:00:40.3]} 34. b4 {[%clk
0:01:04.6]} 34... d4 {[%clk 0:00:28.3]} 35. g5 {[%clk 0:00:56.2]} 35... Bb7+
{[%clk 0:00:24.9]} 36. Be4 {[%clk 0:00:55.1]} 36... d5 {[%clk 0:00:22.2]} 37.
Bd3 {[%clk 0:00:52]} 37... a6 {[%clk 0:00:18]} 38. a5 {[%clk 0:00:46.3]} 38...
Ke6 {[%clk 0:00:17.4]} 39. h4 {[%clk 0:00:40.6]} 39... Bc8 {[%clk 0:00:17.2]}
40. h5 {[%clk 0:00:37.5]} 40... gxh5 {[%clk 0:00:16.7]} 41. Bxh7 {[%clk
0:00:34.1]} 41... Kd6 {[%clk 0:00:16.6]} 42. Bd3 {[%clk 0:00:30.2]} 42... h4
{[%clk 0:00:15]} 43. f5 {[%clk 0:00:26]} 43... Ke5 {[%clk 0:00:15]} 44. f6
{[%clk 0:00:23.6]} 44... Be6 {[%clk 0:00:14.6]} 45. Bxa6 {[%clk 0:00:20]} 45...
Kf5 {[%clk 0:00:14.7]} 46. Bd3+ {[%clk 0:00:15.8]} 46... Kxg5 {[%clk 0:00:15.2]}
47. a6 {[%clk 0:00:16.2]} 47... Bg4+ {[%clk 0:00:14.1]} 48. Kf2 {[%clk
0:00:15.9]} 48... Kxf6 {[%clk 0:00:13]} 49. a7 {[%clk 0:00:14.7]} 49... Ke5
{[%clk 0:00:13.9]} 50. a8=Q {[%clk 0:00:14.3]} 50... Kf4 {[%clk 0:00:14.8]} 51.
Qf8+ {[%clk 0:00:14.3]} 51... Kg5 {[%clk 0:00:15.7]} 52. Qe7+ {[%clk 0:00:13.1]}
52... Kf4 {[%clk 0:00:16.6]} 53. Qf6+ {[%clk 0:00:12.9]} 53... Bf5 {[%clk
0:00:17.4]} 54. Qxf5# {[%clk 0:00:12.6]} 1-0

[Event "Early-Titled-Tuesday-Blitz-January-23-2024"]
[Site "Chess.com"]
[Date "2024.01.23"]
[Round "9"]
[White "simonachess"]
[Black "Actuary44"]
[Result "1-0"]
[WhiteElo "2361"]
[BlackElo "2484"]
[TimeControl "180+1"]
[EndTime "9:45:59 PST"]
[Termination "simonachess won by resignation"]

1. d4 {[%clk 0:02:21.7]} 1... Nf6 {[%clk 0:02:59.7]} 2. c4 {[%clk 0:02:21.4]}
2... g6 {[%clk 0:03:00.4]} 3. Nc3 {[%clk 0:02:20.8]} 3... Bg7 {[%clk 0:03:01]}
4. e4 {[%clk 0:02:20.9]} 4... d6 {[%clk 0:03:01.7]} 5. Be2 {[%clk 0:02:21.4]}
5... O-O {[%clk 0:03:02.4]} 6. Bg5 {[%clk 0:02:21.9]} 6... c5 {[%clk 0:03:02]}
7. d5 {[%clk 0:02:21.9]} 7... Na6 {[%clk 0:03:02.5]} 8. h3 {[%clk 0:02:21.3]}
8... Nc7 {[%clk 0:03:03.2]} 9. Nf3 {[%clk 0:02:21.3]} 9... a6 {[%clk 0:03:03.8]}
10. a4 {[%clk 0:02:20.9]} 10... Rb8 {[%clk 0:03:04.3]} 11. a5 {[%clk 0:02:21]}
11... b5 {[%clk 0:03:04.2]} 12. axb6 {[%clk 0:02:21]} 12... Rxb6 {[%clk
0:03:04.9]} 13. Ra2 {[%clk 0:02:21.4]} 13... Bd7 {[%clk 0:03:04.7]} 14. O-O
{[%clk 0:02:20.7]} 14... h6 {[%clk 0:03:04.7]} 15. Bf4 {[%clk 0:02:15.4]} 15...
Qb8 {[%clk 0:02:59.8]} 16. Qc2 {[%clk 0:02:13]} 16... e5 {[%clk 0:02:59.3]} 17.
dxe6 {[%clk 0:02:08.5]} 17... Nxe6 {[%clk 0:02:59.5]} 18. Be3 {[%clk 0:02:05.5]}
18... Qb7 {[%clk 0:02:55.7]} 19. Nd5 {[%clk 0:02:03.6]} 19... Nxd5 {[%clk
0:02:52.7]} 20. exd5 {[%clk 0:02:03.9]} 20... Nc7 {[%clk 0:02:46.8]} 21. Bf4
{[%clk 0:01:47.1]} 21... g5 {[%clk 0:02:32.9]} 22. Bc1 {[%clk 0:01:41.9]} 22...
f5 {[%clk 0:02:27.7]} 23. Bd3 {[%clk 0:01:37.6]} 23... g4 {[%clk 0:02:13.1]} 24.
hxg4 {[%clk 0:01:34.1]} 24... fxg4 {[%clk 0:02:14]} 25. Nh4 {[%clk 0:01:34.3]}
25... Be8 {[%clk 0:01:57.5]} 26. Nf5 {[%clk 0:01:32.5]} 26... Rf6 {[%clk
0:01:18.5]} 27. Nxg7 {[%clk 0:01:29.7]} 27... Kxg7 {[%clk 0:01:19.4]} 28. Bd2
{[%clk 0:01:24.1]} 28... Bg6 {[%clk 0:01:09.7]} 29. Bc3 {[%clk 0:01:23.6]} 29...
Bxd3 {[%clk 0:01:02.1]} 30. Qxd3 {[%clk 0:01:20.6]} 30... Ne8 {[%clk 0:01:01.9]}
31. Re1 {[%clk 0:01:06.1]} 31... Qf7 {[%clk 0:01:01.3]} 32. Qf5 {[%clk 0:00:57]}
32... Kf8 {[%clk 0:00:38.7]} 33. Rxe8+ {[%clk 0:00:53.3]} 33... Kxe8 {[%clk
0:00:29.6]} 34. Qxf6 {[%clk 0:00:52.9]} 34... Qxf6 {[%clk 0:00:27.4]} 35. Bxf6
{[%clk 0:00:53.8]} 35... Kf7 {[%clk 0:00:24.1]} 36. Bc3 {[%clk 0:00:53.4]} 36...
Kg6 {[%clk 0:00:22.7]} 37. Kh2 {[%clk 0:00:53.8]} 37... Kf5 {[%clk 0:00:22.3]}
38. Kg3 {[%clk 0:00:46.7]} 38... Ke4 {[%clk 0:00:20.4]} 39. Kxg4 {[%clk
0:00:44.4]} 39... Kd3 {[%clk 0:00:20.8]} 40. Ra4 {[%clk 0:00:39]} 40... a5
{[%clk 0:00:15]} 41. f4 {[%clk 0:00:36.6]} 41... Rb8 {[%clk 0:00:14.9]} 42. Rxa5
{[%clk 0:00:35.2]} 42... Kxc4 {[%clk 0:00:14.3]} 43. f5 {[%clk 0:00:34]} 43...
Kxd5 {[%clk 0:00:13]} 44. f6 {[%clk 0:00:34.5]} 44... Ke6 {[%clk 0:00:11.2]} 45.
Ra7 {[%clk 0:00:32.5]} 45... Rg8+ {[%clk 0:00:06.5]} 46. Kf3 {[%clk 0:00:30.4]}
46... d5 {[%clk 0:00:06.3]} 47. Re7+ {[%clk 0:00:27.6]} 47... Kd6 {[%clk
0:00:06.6]} 48. Be5+ {[%clk 0:00:21]} 48... Kc6 {[%clk 0:00:04.3]} 49. f7 {[%clk
0:00:21.3]} 49... Rf8 {[%clk 0:00:04]} 50. Bg7 {[%clk 0:00:21.4]} 1-0

[Event "Early-Titled-Tuesday-Blitz-January-23-2024"]
[Site "Chess.com"]
[Date "2024.01.23"]
[Round "9"]
[White "Mops_2004"]
[Black "ukchessbomber"]
[Result "0-1"]
[WhiteElo "2841"]
[BlackElo "2698"]
[TimeControl "180+1"]
[EndTime "9:46:01 PST"]
[Termination "ukchessbomber won by resignation"]

1. Nf3 {[%clk 0:03:00.9]} 1... b5 {[%clk 0:02:57]} 2. g3 {[%clk 0:02:55.9]} 2...
Bb7 {[%clk 0:02:57.3]} 3. Bg2 {[%clk 0:02:56.3]} 3... Nf6 {[%clk 0:02:57.9]} 4.
O-O {[%clk 0:02:56.5]} 4... g6 {[%clk 0:02:58.6]} 5. Na3 {[%clk 0:02:56.3]} 5...
a6 {[%clk 0:02:58.4]} 6. c4 {[%clk 0:02:56.5]} 6... b4 {[%clk 0:02:58.5]} 7. Nc2
{[%clk 0:02:56.5]} 7... a5 {[%clk 0:02:58.8]} 8. b3 {[%clk 0:02:55.9]} 8... Bg7
{[%clk 0:02:59.1]} 9. a3 {[%clk 0:02:53.4]} 9... c5 {[%clk 0:02:55.7]} 10. Bb2
{[%clk 0:02:52.8]} 10... O-O {[%clk 0:02:55.3]} 11. axb4 {[%clk 0:02:53]} 11...
axb4 {[%clk 0:02:55.1]} 12. Rxa8 {[%clk 0:02:53.9]} 12... Bxa8 {[%clk
0:02:55.9]} 13. d4 {[%clk 0:02:51.7]} 13... d6 {[%clk 0:02:52.9]} 14. Qa1 {[%clk
0:02:36]} 14... Be4 {[%clk 0:02:32.1]} 15. Ne3 {[%clk 0:02:35.6]} 15... Nbd7
{[%clk 0:02:29.1]} 16. d5 {[%clk 0:02:05.5]} 16... Qa8 {[%clk 0:02:21.3]} 17.
Bh3 {[%clk 0:01:56.2]} 17... Bxf3 {[%clk 0:01:49.5]} 18. exf3 {[%clk 0:01:56]}
18... Qb7 {[%clk 0:01:49.5]} 19. Qa4 {[%clk 0:01:16.8]} 19... Ra8 {[%clk
0:01:40.6]} 20. Qc6 {[%clk 0:01:16.5]} 20... Qxc6 {[%clk 0:01:41.2]} 21. dxc6
{[%clk 0:01:16.8]} 21... Nb6 {[%clk 0:01:42.1]} 22. c7 {[%clk 0:00:50.6]} 22...
e6 {[%clk 0:01:16.7]} 23. Rd1 {[%clk 0:00:50.1]} 23... Ne8 {[%clk 0:01:10.7]}
24. Bxg7 {[%clk 0:00:44.3]} 24... Kxg7 {[%clk 0:01:11.6]} 25. f4 {[%clk
0:00:36.4]} 25... Ra3 {[%clk 0:00:40.9]} 26. Rd3 {[%clk 0:00:25.3]} 26... Ra7
{[%clk 0:00:35.2]} 27. Rd1 {[%clk 0:00:22]} 27... Nc8 {[%clk 0:00:28.6]} 28. Bg2
{[%clk 0:00:20.4]} 28... Rxc7 {[%clk 0:00:20]} 29. h4 {[%clk 0:00:16.4]} 29...
h5 {[%clk 0:00:18.6]} 30. Ra1 {[%clk 0:00:10.6]} 30... Ra7 {[%clk 0:00:18.4]}
31. Rxa7 {[%clk 0:00:09.4]} 31... Nxa7 {[%clk 0:00:19.3]} 32. Bb7 {[%clk
0:00:09]} 32... Kf8 {[%clk 0:00:19.1]} 33. Kf1 {[%clk 0:00:08.3]} 33... Ke7
{[%clk 0:00:19.5]} 34. Ke2 {[%clk 0:00:08.7]} 34... Nf6 {[%clk 0:00:19.4]} 35.
f3 {[%clk 0:00:08.5]} 35... Kd7 {[%clk 0:00:19.2]} 36. Be4 {[%clk 0:00:03.9]}
36... Nxe4 {[%clk 0:00:15]} 37. fxe4 {[%clk 0:00:04.8]} 37... Nc6 {[%clk
0:00:15.3]} 38. Nc2 {[%clk 0:00:02.4]} 38... Na5 {[%clk 0:00:11.2]} 39. Na1
{[%clk 0:00:01.8]} 39... d5 {[%clk 0:00:11.6]} 40. exd5 {[%clk 0:00:01.7]} 40...
exd5 {[%clk 0:00:12.5]} 41. cxd5 {[%clk 0:00:02.1]} 41... Kd6 {[%clk 0:00:12.9]}
42. Kd3 {[%clk 0:00:03]} 42... Kxd5 {[%clk 0:00:13.4]} 43. Kc2 {[%clk
0:00:03.3]} 43... Kd4 {[%clk 0:00:13.2]} 44. Kb2 {[%clk 0:00:03.4]} 44... Ke3
{[%clk 0:00:13.2]} 45. Nc2+ {[%clk 0:00:03.7]} 45... Kf3 {[%clk 0:00:13.9]} 46.
Ne1+ {[%clk 0:00:03.3]} 46... Kxg3 {[%clk 0:00:14.4]} 47. Nd3 {[%clk 0:00:04.1]}
47... Nb7 {[%clk 0:00:14.9]} 48. Ne5 {[%clk 0:00:03]} 48... Nd6 {[%clk
0:00:15.3]} 49. Nd3 {[%clk 0:00:02.3]} 49... Kxh4 {[%clk 0:00:15.5]} 50. Nxc5
{[%clk 0:00:02.4]} 50... Kg3 {[%clk 0:00:15.9]} 51. Nd3 {[%clk 0:00:02.4]} 51...
h4 {[%clk 0:00:16.3]} 0-1

[Event "Early-Titled-Tuesday-Blitz-January-23-2024"]
[Site "Chess.com"]
[Date "2024.01.23"]
[Round "9"]
[White "Orphanator2009"]
[Black "Crazy_girl99"]
[Result "0-1"]
[WhiteElo "2470"]
[BlackElo "2606"]
[TimeControl "180+1"]
[EndTime "9:46:01 PST"]
[Termination "Crazy_girl99 won by resignation"]

1. e4 {[%clk 0:03:00.9]} 1... e5 {[%clk 0:02:55.7]} 2. Nf3 {[%clk 0:02:57.4]}
2... Nc6 {[%clk 0:02:54.8]} 3. Nc3 {[%clk 0:02:57.6]} 3... Nf6 {[%clk
0:02:54.6]} 4. d4 {[%clk 0:02:57.9]} 4... exd4 {[%clk 0:02:55.1]} 5. Nxd4 {[%clk
0:02:58.8]} 5... Bb4 {[%clk 0:02:55.1]} 6. Nxc6 {[%clk 0:02:59.3]} 6... bxc6
{[%clk 0:02:54.3]} 7. Bd3 {[%clk 0:02:59.7]} 7... d5 {[%clk 0:02:54.3]} 8. exd5
{[%clk 0:02:57.2]} 8... O-O {[%clk 0:02:55]} 9. O-O {[%clk 0:02:57.6]} 9... cxd5
{[%clk 0:02:55.1]} 10. h3 {[%clk 0:02:58.2]} 10... c6 {[%clk 0:02:53.6]} 11. Qf3
{[%clk 0:02:58]} 11... Bd6 {[%clk 0:02:50.8]} 12. Bf4 {[%clk 0:02:56.2]} 12...
Rb8 {[%clk 0:02:50]} 13. b3 {[%clk 0:02:51.6]} 13... Rb4 {[%clk 0:02:49.3]} 14.
Bxd6 {[%clk 0:02:50.9]} 14... Qxd6 {[%clk 0:02:49.2]} 15. Ne2 {[%clk 0:02:37.3]}
15... Re8 {[%clk 0:02:46.7]} 16. Rfe1 {[%clk 0:02:36.6]} 16... Bd7 {[%clk
0:02:43.2]} 17. Qg3 {[%clk 0:02:11.5]} 17... Qxg3 {[%clk 0:02:32.4]} 18. Nxg3
{[%clk 0:02:12.4]} 18... g6 {[%clk 0:02:32.3]} 19. Nf1 {[%clk 0:02:04.3]} 19...
a5 {[%clk 0:02:30.4]} 20. Rxe8+ {[%clk 0:01:55]} 20... Nxe8 {[%clk 0:02:29.3]}
21. Re1 {[%clk 0:01:46.2]} 21... Kf8 {[%clk 0:02:28.1]} 22. Nd2 {[%clk
0:01:42.5]} 22... Nd6 {[%clk 0:02:27.7]} 23. Nf3 {[%clk 0:01:40.7]} 23... f6
{[%clk 0:02:23.9]} 24. Rb1 {[%clk 0:01:33.8]} 24... c5 {[%clk 0:02:22.6]} 25.
Nd2 {[%clk 0:01:31.2]} 25... c4 {[%clk 0:02:13.2]} 26. bxc4 {[%clk 0:01:29.1]}
26... Rxb1+ {[%clk 0:02:09.7]} 27. Nxb1 {[%clk 0:01:30]} 27... dxc4 {[%clk
0:02:10.1]} 28. Be2 {[%clk 0:01:23]} 28... Bf5 {[%clk 0:02:09.9]} 29. Na3 {[%clk
0:01:20.6]} 29... c3 {[%clk 0:02:09.9]} 30. Kf1 {[%clk 0:01:05]} 30... Be6
{[%clk 0:02:07.4]} 31. Nb1 {[%clk 0:01:00.1]} 31... Ne4 {[%clk 0:02:07.6]} 32.
Bd3 {[%clk 0:00:49]} 32... Bxa2 {[%clk 0:02:06.6]} 33. Na3 {[%clk 0:00:24]}
33... Nc5 {[%clk 0:02:01.5]} 34. Ke2 {[%clk 0:00:24.4]} 34... Bd5 {[%clk
0:01:56.2]} 35. g3 {[%clk 0:00:23.7]} 35... Ke7 {[%clk 0:01:52.9]} 36. Nb5
{[%clk 0:00:23.6]} 36... Na4 {[%clk 0:01:44.7]} 37. Ke3 {[%clk 0:00:24]} 37...
Bc6 {[%clk 0:01:41.8]} 38. Kd4 {[%clk 0:00:22.8]} 38... Bd7 {[%clk 0:01:24.5]}
39. Nxc3 {[%clk 0:00:21.9]} 39... Nxc3 {[%clk 0:01:23.7]} 40. Kxc3 {[%clk
0:00:22.8]} 40... Bxh3 {[%clk 0:01:23.9]} 41. Kc4 {[%clk 0:00:21.8]} 41... Bd7
{[%clk 0:01:23]} 42. Kc5 {[%clk 0:00:22]} 42... f5 {[%clk 0:01:22.2]} 43. c3
{[%clk 0:00:19.8]} 43... g5 {[%clk 0:01:22.1]} 44. f4 {[%clk 0:00:19]} 44...
gxf4 {[%clk 0:01:21.6]} 45. gxf4 {[%clk 0:00:19.9]} 45... h5 {[%clk 0:01:22]}
46. Bf1 {[%clk 0:00:20.5]} 46... h4 {[%clk 0:01:22.4]} 47. Bh3 {[%clk
0:00:21.4]} 47... a4 {[%clk 0:01:21.1]} 48. Kb4 {[%clk 0:00:21.8]} 48... Kd6
{[%clk 0:01:21.4]} 49. c4 {[%clk 0:00:22.2]} 49... Ke6 {[%clk 0:01:13.6]} 50.
Bg2 {[%clk 0:00:22.4]} 50... Kf6 {[%clk 0:01:10.5]} 51. Bh3 {[%clk 0:00:22.8]}
51... Kg6 {[%clk 0:01:08.4]} 52. Bg2 {[%clk 0:00:23.4]} 52... Kh5 {[%clk
0:01:08.7]} 53. Bh3 {[%clk 0:00:24]} 53... Kg6 {[%clk 0:00:57.3]} 54. Bg2 {[%clk
0:00:24.1]} 54... Kg7 {[%clk 0:00:49.7]} 55. Bh3 {[%clk 0:00:24]} 55... Kf6
{[%clk 0:00:50.3]} 56. Bg2 {[%clk 0:00:24.1]} 56... Kg6 {[%clk 0:00:50.6]} 57.
Bf1 {[%clk 0:00:23.9]} 57... Bc6 {[%clk 0:00:48]} 58. Bh3 {[%clk 0:00:23.6]}
58... Kf6 {[%clk 0:00:44.4]} 59. Bf1 {[%clk 0:00:21.4]} 59... Ke6 {[%clk
0:00:44]} 60. Bh3 {[%clk 0:00:19.6]} 60... Bd7 {[%clk 0:00:44.2]} 61. Bf1 {[%clk
0:00:20.1]} 61... Kd6 {[%clk 0:00:44.6]} 62. Bh3 {[%clk 0:00:20.7]} 62... a3
{[%clk 0:00:38]} 63. Kxa3 {[%clk 0:00:20.6]} 63... Kc5 {[%clk 0:00:38.7]} 64.
Kb3 {[%clk 0:00:20.7]} 64... Kd4 {[%clk 0:00:39.1]} 65. Kb4 {[%clk 0:00:21]}
65... Ke4 {[%clk 0:00:39.6]} 66. c5 {[%clk 0:00:21.4]} 66... Kxf4 {[%clk
0:00:40]} 67. Kc4 {[%clk 0:00:21.7]} 67... Kg3 {[%clk 0:00:39.8]} 68. Bf1 {[%clk
0:00:22]} 68... f4 {[%clk 0:00:40.2]} 69. Kd3 {[%clk 0:00:22]} 69... Bb5+ {[%clk
0:00:37.5]} 0-1